bitfinex/quotes_SOLUSD_20241123
["timestamp","ask_amount","ask_price","bid_price","bid_amount"]
[1732361365917,10.0,256.26,256.23,20.0]
[1732361366608,10.0,256.26,256.15,20.0]
[1732361367204,1.53965577,256.27,256.15,20.0]
[1732361367820,10.0,256.26,256.15,20.0]
[1732361368402,10.0,256.28,256.16,3.882]
[1732361368809,10.0,256.26,256.16,3.882]
[1732361369413,10.0,256.26,256.24,20.0]
[1732361370326,10.0,256.26,256.15,23.882]
[1732361371023,10.0,256.26,256.17,20.0]
[1732361371223,10.0,256.26,256.18,27.658884]
[1732361371403,10.0,256.26,256.19,20.0]
[1732361372911,10.0,256.26,256.22,20.0]
[1732361373111,1.53965577,256.27,256.22,20.0]
[1732361373317,10.0,256.26,256.22,20.0]
[1732361373624,10.0,256.26,256.19,20.0]
[1732361374410,10.0,256.26,256.2,3.882]
[1732361376028,1.53965577,256.27,256.2,3.882]
[1732361376623,1.53965577,256.27,256.24,312.0]
[1732361378021,10.0,256.26,256.24,312.0]
[1732361384002,1.53965577,256.27,256.24,312.0]
[1732361384227,1.53965577,256.27,256.13,23.882]
[1732361384432,1.53965577,256.27,256.15,3.882]
[1732361384620,1.53965577,256.27,256.15,25.12145186]
[1732361384925,10.0,256.28,256.17,20.0]
[1732361385135,10.0,256.28,256.18,5.12145186]
[1732361385613,10.0,256.28,256.19,20.0]
[1732361386828,10.0,256.28,256.19,23.882]
[1732361387020,10.0,256.26,256.19,23.882]
[1732361387421,11.53965577,256.28,256.21,20.0]
[1732361387620,11.53965577,256.28,256.19,23.882]
[1732361388135,11.53965577,256.28,256.21,20.0]
[1732361388334,11.53965577,256.3,256.21,20.0]
[1732361388516,11.53965577,256.28,256.19,20.0]
[1732361389526,11.53965577,256.28,256.19,23.882]
[1732361390237,11.53965577,256.28,256.26,312.0]
[1732361390734,1.53965577,256.28,256.26,312.0]
[1732361390921,11.53965577,256.28,256.26,312.0]
[1732361392425,11.53965577,256.28,256.19,20.0]
[1732361392628,11.53965577,256.25,256.14,3.882]
[1732361392817,11.53965577,256.25,256.13,20.0]
[1732361393015,11.53965577,256.25,256.13,25.12145186]
[1732361394522,11.53965577,256.25,256.15,20.0]
[1732361394826,1.53965577,256.25,256.15,20.0]
[1732361395034,11.53965577,256.25,256.16,23.776884]
[1732361395334,11.53965577,256.25,256.17,20.0]
[1732361395526,11.53965577,256.25,256.23,312.0]
[1732361395917,1.53965577,256.25,256.23,312.0]
[1732361396119,11.53965577,256.25,256.23,312.0]
[1732361398430,1.53965577,256.25,256.23,312.0]
[1732361399016,11.53965577,256.25,256.23,312.0]
[1732361400041,1.53965577,256.25,256.23,312.0]
[1732361400240,11.53965577,256.25,256.23,312.0]
[1732361400941,1.53965577,256.25,256.23,312.0]
[1732361401144,1.53965577,256.25,256.18,3.882]
[1732361401346,11.53965577,256.25,256.18,3.882]
[1732361402040,1.53965577,256.25,256.18,3.882]
[1732361402341,11.53965577,256.25,256.18,3.882]
[1732361404232,11.53965577,256.25,256.23,312.0]
[1732361404621,1.53965577,256.25,256.23,312.0]
[1732361404841,11.53965577,256.25,256.23,312.0]
[1732361405943,1.53965577,256.21,256.15,20.0]
[1732361406433,10.0,256.2,256.14,5.12145186]
[1732361407420,1.53965577,256.21,256.14,5.12145186]
[1732361407740,10.0,256.18,256.15,20.0]
[1732361407948,10.0,256.18,256.06,6.1799]
[1732361408122,10.0,256.18,256.08,5.12145186]
[1732361408652,1.53965577,256.17,256.08,5.12145186]
[1732361408944,10.0,256.15,256.13,312.0]
[1732361409334,1.53965577,256.13,256.08,5.12145186]
[1732361409536,11.53965577,256.15,256.08,5.12145186]
[1732361409725,1.53965577,256.13,256.08,5.12145186]
[1732361409924,10.0,256.15,256.08,5.12145186]
[1732361410151,10.0,256.15,256.09,20.0]
[1732361410522,10.0,256.15,256.09,9.00345186]
[1732361410837,10.0,256.17,256.1,20.0]
[1732361411154,10.0,256.15,256.1,20.0]
[1732361412227,1.53965577,256.14,256.1,20.0]
[1732361412429,1.53965577,256.14,256.13,332.0]
[1732361412629,10.0,256.15,256.14,20.0]
[1732361413048,10.0,256.13,256.05,20.0]
[1732361413232,11.53965577,256.13,256.06,23.776884]
[1732361413949,1.53965577,256.11,256.03,5.12145186]
[1732361414134,11.53965577,256.09,256.03,5.12145186]
[1732361414742,10.0,256.11,256.03,5.12145186]
[1732361415047,1.53965577,256.15,256.03,5.12145186]
[1732361415048,10.0,256.14,256.03,5.12145186]
[1732361415346,1.53965577,256.15,256.03,5.70705596]
[1732361415526,10.0,256.14,256.04,32.78033586]
[1732361415840,10.0,256.14,256.13,312.0]
[1732361417943,1.53965577,256.15,256.13,312.0]
[1732361418153,10.0,256.17,256.07,20.0]
[1732361418340,10.0,256.17,256.07,5.12145186]
[1732361418523,11.53965577,256.21,256.08,25.12145186]
[1732361418855,11.53965577,256.21,256.09,0.58545554]
[1732361419031,11.03965577,256.21,256.1,5.12145186]
[1732361419227,11.03965577,256.21,256.11,20.0]
[1732361419544,11.03965577,256.21,256.13,20.0]
[1732361419724,10.0,256.19,256.13,20.0]
[1732361419926,10.0,256.19,256.14,23.776884]
[1732361420120,10.0,256.19,256.15,20.0]
[1732361420839,11.03965577,256.19,256.11,20.0]
[1732361421041,11.03965577,256.19,256.16,312.0]
[1732361421239,10.0,256.17,256.11,20.0]
[1732361421847,10.0,256.14,256.05,20.0]
[1732361422151,10.0,256.14,256.05,25.12145186]
[1732361422459,10.0,256.14,256.05,5.12145186]
[1732361422832,11.03965577,256.14,256.05,5.12145186]
[1732361423334,10.0,256.11,256.05,5.12145186]
[1732361423529,1.03965577,256.1,256.01,20.0]
[1732361423742,10.0,256.08,256.01,5.12145186]
[1732361424245,10.0,256.08,256.07,312.0]
[1732361425255,10.0,256.08,256.07,332.0]
[1732361425751,10.0,256.13,256.08,43.776884]
[1732361426256,10.0,256.17,256.08,43.776884]
[1732361426427,10.0,256.17,256.08,48.89833586]
[1732361428161,1.03965577,256.15,256.08,48.89833586]
[1732361428330,11.03965577,256.15,256.08,48.89833586]
[1732361428525,11.03965577,256.15,256.14,312.0]
[1732361428953,1.03965577,256.15,256.14,312.0]
[1732361429153,11.03965577,256.15,256.14,312.0]
[1732361429731,11.03965577,256.15,256.08,48.89833586]
[1732361429732,1.03965577,256.09,255.98,19.0727]
[1732361430127,1.03965577,256.09,255.98,19.65843847]
[1732361430336,10.0,256.1,255.98,19.65843847]
[1732361430564,10.0,256.1,255.98,24.27433477]
[1732361430739,10.0,256.1,256.0,3.882]
[1732361430938,10.0,256.1,256.0,4.46771847]
[1732361431132,1.03965577,256.09,256.01,27.658884]
[1732361431448,1.03965577,256.09,256.0,20.0]
[1732361431449,11.03965577,256.14,256.05,23.776884]
[1732361431652,10.0,256.14,256.08,20.0]
[1732361431956,10.0,256.14,256.1,20.0]
[1732361432642,10.0,256.14,256.13,312.0]
[1732361432848,11.03965577,256.14,256.13,312.0]
[1732361435350,11.03965577,256.14,256.11,23.776884]
[1732361435553,11.03965577,256.14,256.12,20.0]
[1732361435748,11.03965577,256.1,255.95,4.50517589]
[1732361435945,11.03965577,256.1,256.0,23.776884]
[1732361436736,1.03965577,256.08,256.02,23.776884]
[1732361437233,1.03965577,256.08,256.04,23.776884]
[1732361437637,1.03965577,256.08,256.07,20.0]
[1732361438441,1.03965577,256.08,256.07,332.0]
[1732361438641,11.03965577,256.08,256.07,332.0]
[1732361440462,1.03965577,256.08,256.07,332.0]
[1732361440636,11.03965577,256.08,256.07,332.0]
[1732361441535,1.03965577,256.08,256.07,20.0]
[1732361441739,11.03965577,256.08,255.99,23.882]
[1732361442261,11.03965577,256.08,255.99,28.94350741]
[1732361442438,11.03965577,256.08,256.0,23.776884]
[1732361442759,11.03965577,256.08,256.01,20.0]
[1732361444143,11.03965577,256.1,256.01,20.0]
[1732361444358,1.03965577,256.1,256.02,3.882]
[1732361444564,1.03965577,256.1,256.09,312.0]
[1732361445685,1.03965577,256.1,256.09,332.0]
[1732361446741,10.0,256.12,256.09,332.0]
[1732361446942,10.0,256.12,256.1,20.0]
[1732361447153,11.03965577,256.12,256.1,20.0]
[1732361447443,10.0,256.12,256.01,20.0]
[1732361447643,10.0,256.12,256.01,25.06150741]
[1732361447944,11.03965577,256.14,256.03,23.882]
[1732361448144,11.03965577,256.12,256.03,23.882]
[1732361448350,10.0,256.12,256.03,23.882]
[1732361448546,11.03965577,256.12,256.03,23.882]
[1732361449049,10.0,256.11,256.03,23.882]
[1732361449249,1.03965577,256.1,256.03,23.882]
[1732361449563,1.03965577,256.1,256.05,20.0]
[1732361449740,1.03965577,256.1,256.06,23.776884]
[1732361449939,1.03965577,256.1,256.08,20.0]
[1732361450539,1.03965577,256.08,256.03,20.0]
[1732361450743,1.03965577,256.08,256.04,23.776884]
[1732361451151,1.03965577,256.08,256.05,20.0]
[1732361451666,9.99789189,256.11,256.05,20.0]
[1732361453451,9.99789189,256.11,256.09,312.0]
[1732361454846,9.99789189,256.11,256.05,20.0]
[1732361456947,9.99789189,256.13,256.05,20.0]
[1732361457143,9.99789189,256.1,256.05,20.0]
[1732361457768,9.99789189,256.1,256.09,332.0]
[1732361457952,9.99789189,256.13,256.09,312.0]
[1732361458276,0.2123367,256.12,256.09,312.0]
[1732361458565,9.99789189,256.1,256.09,332.0]
[1732361463254,9.99789189,256.1,256.0,3.882]
[1732361463457,9.99789189,256.1,256.01,23.776884]
[1732361463666,9.99789189,256.1,256.02,20.0]
[1732361463977,9.99789189,256.08,256.02,20.0]
[1732361464478,9.99789189,256.08,256.0,8.94350741]
[1732361464479,9.99789189,256.08,256.01,20.0]
[1732361464654,9.99789189,256.11,256.01,5.06150741]
[1732361464855,9.99789189,256.11,256.03,20.0]
[1732361465155,0.05214704,256.12,256.03,25.06150741]
[1732361465362,0.05214704,256.12,256.05,20.0]
[1732361465684,0.05214704,256.12,256.07,20.0]
[1732361466252,10.05003893,256.12,256.11,332.0]
[1732361466973,0.05214704,256.12,256.11,332.0]
[1732361478683,9.99789189,256.15,256.12,20.0]
[1732361480969,9.99789189,256.13,256.05,23.882]
[1732361481876,0.2123367,256.18,256.05,23.882]
[1732361481877,9.99789189,256.15,256.05,23.882]
[1732361483092,9.99789189,256.15,256.07,20.0]
[1732361483275,0.2123367,256.18,256.07,20.0]
[1732361483276,9.99789189,256.13,256.07,20.0]
[1732361483877,9.99789189,256.13,256.12,20.0]
[1732361484589,9.99789189,256.13,256.03,23.776884]
[1732361484791,9.99789189,256.13,256.04,23.882]
[1732361485796,9.99789189,256.13,256.04,20.0]
[1732361485969,9.99789189,256.13,256.05,3.882]
[1732361486169,9.99789189,256.13,256.05,23.882]
[1732361486777,9.99789189,256.15,256.04,23.882]
[1732361487275,9.99789189,256.15,256.13,20.0]
[1732361487783,0.2123367,256.18,256.03,23.776884]
[1732361487784,9.99789189,256.18,256.08,20.0]
[1732361488783,9.99789189,256.18,256.09,3.882]
[1732361489386,9.99789189,256.15,256.09,3.882]
[1732361489697,9.99789189,256.15,256.08,20.0]
[1732361489994,9.99789189,256.17,256.09,3.882]
[1732361490492,9.99789189,256.19,256.08,20.0]
[1732361490671,9.99789189,256.19,256.08,25.06150741]
[1732361490877,15.551443,256.2,256.18,332.0]
[1732361491087,9.99789189,256.19,256.18,332.0]
[1732361492379,15.551443,256.2,256.19,20.0]
[1732361492802,15.551443,256.2,256.1,23.882]
[1732361493103,9.99789189,256.21,256.1,23.882]
[1732361493478,9.99789189,256.19,256.12,3.882]
[1732361494397,9.99789189,256.19,256.11,3.882]
[1732361494774,25.54561989,256.21,256.11,2.84023612]
[1732361495084,9.99789189,256.21,256.11,3.882]
[1732361495582,9.99789189,256.25,256.21,20.0]
[1732361496001,25.54334489,256.25,256.21,20.0]
[1732361496177,25.54334489,256.25,256.13,20.0]
[1732361496373,9.99789189,256.25,256.14,3.882]
[1732361496592,9.99789189,256.22,256.14,23.882]
[1732361496894,25.54266689,256.26,256.14,23.882]
[1732361497086,9.99789189,256.22,256.14,23.882]
[1732361497401,9.99789189,256.22,256.14,20.0]
[1732361497695,9.99789189,256.22,256.15,20.0]
[1732361498083,9.99789189,256.22,256.14,20.0]
[1732361499011,9.99789189,256.22,256.21,312.0]
[1732361499308,9.99789189,256.25,256.21,332.0]
[1732361499481,9.99789189,256.22,256.21,20.0]
[1732361500101,9.99789189,256.25,256.14,23.882]
[1732361500290,9.99789189,256.22,256.15,23.882]
[1732361500494,9.99789189,256.22,256.15,20.0]
[1732361500998,9.99789189,256.22,256.14,20.0]
[1732361501176,9.99789189,256.2,256.14,20.0]
[1732361501381,9.99789189,256.2,256.1,20.0]
[1732361501999,9.99789189,256.2,256.12,20.0]
[1732361502193,9.99789189,256.2,256.13,23.776884]
[1732361502392,9.99789189,256.2,256.14,20.0]
[1732361502600,9.99789189,256.2,256.19,20.0]
[1732361503197,9.99789189,256.2,256.14,20.0]
[1732361506101,9.99789189,256.2,256.18,20.0]
[1732361506706,9.99789189,256.2,256.14,20.0]
[1732361507085,9.99789189,256.2,256.12,3.882]
[1732361507488,9.99789189,256.2,256.14,20.0]
[1732361508501,9.99789189,256.2,256.09,5.40627627]
[1732361508502,26.59759189,256.2,256.09,5.40627627]
[1732361508705,9.99789189,256.15,256.01,15.4355]
[1732361508902,9.99789189,256.15,256.01,15.38335296]
[1732361509285,9.99789189,256.15,256.02,0.58563129]
[1732361509591,15.383353,256.14,256.12,312.0]
[1732361509803,9.99789189,256.17,256.13,20.0]
[1732361510001,15.383353,256.17,256.05,20.0]
[1732361510204,9.99789189,256.19,256.08,20.0]
[1732361510505,25.54606689,256.19,256.1,23.882]
[1732361510691,25.54606689,256.19,256.12,20.0]
[1732361512812,9.99789189,256.19,256.12,20.0]
[1732361513114,9.99789189,256.19,256.18,332.0]
[1732361515015,15.54781,256.2,256.19,20.0]
[1732361515488,9.99789189,256.19,256.12,20.0]
[1732361515694,9.99789189,256.21,256.14,20.0]
[1732361515897,25.54498689,256.21,256.14,20.0]
[1732361516515,25.54498689,256.21,256.16,20.0]
[1732361517115,25.54498689,256.21,256.12,20.0]
[1732361517511,25.54498689,256.21,256.14,20.0]
[1732361517712,25.54498689,256.21,256.14,23.882]
[1732361518190,25.54498689,256.21,256.2,332.0]
[1732361519304,25.54498689,256.21,256.14,20.0]
[1732361520109,25.54498689,256.21,256.01,13.744904]
[1732361520110,9.99789189,256.06,255.91,6.1123336]
[1732361520501,9.99789189,256.07,255.92,0.58585744]
[1732361521700,9.99789189,256.07,255.91,0.58580006]
[1732361522095,9.99789189,256.07,256.06,312.0]
[1732361522898,0.99789189,256.07,256.06,312.0]
[1732361523916,0.99789189,256.07,256.06,332.0]
[1732361526409,0.99789189,256.08,256.07,20.0]
[1732361527217,0.99789189,256.08,255.96,23.882]
[1732361527926,0.99789189,256.08,255.98,3.882]
[1732361528234,0.99789189,256.08,255.98,23.882]
[1732361529605,16.55226289,256.08,256.07,332.0]
[1732361529808,15.554371,256.08,256.07,332.0]
[1732361530017,16.55226289,256.08,256.07,332.0]
[1732361530516,0.99789189,256.08,256.07,332.0]
[1732361530825,0.99789189,256.1,256.08,20.0]
[1732361531418,0.99789189,256.1,255.98,20.0]
[1732361531917,0.99789189,256.1,255.99,3.882]
[1732361532722,0.2123367,256.13,255.98,20.0]
[1732361532723,0.99789189,256.08,255.98,20.0]
[1732361533022,0.99789189,256.08,255.98,20.58572016]
[1732361533208,0.99789189,256.12,255.98,20.58572016]
[1732361533910,0.99789189,256.12,256.11,332.0]
[1732361535221,0.99789189,256.13,256.12,20.0]
[1732361535805,0.99789189,256.13,256.06,20.0]
[1732361536103,0.99789189,256.12,256.09,23.776884]
[1732361536625,0.99789189,256.12,256.1,20.0]
[1732361536821,0.99789189,256.15,256.1,20.0]
[1732361538527,0.99789189,256.15,256.14,312.0]
[1732361543347,0.99789189,256.15,256.05,20.0]
[1732361543637,0.99789189,256.08,256.05,20.0]
[1732361544033,0.99789189,256.1,255.96,20.58568393]
[1732361544219,0.99789189,256.16,256.0,20.0]
[1732361544421,0.99789189,256.15,256.02,20.0]
[1732361544631,16.3431,256.2,256.02,20.0]
[1732361544632,0.99789189,256.17,256.03,0.58554332]
[1732361545141,0.99789189,256.17,256.03,4.46754332]
[1732361546434,0.99789189,256.17,256.16,332.0]
[1732361548216,0.49789189,256.17,256.16,332.0]
[1732361556047,0.49789189,256.07,255.95,6.047]
[1732361557256,0.49789189,256.07,255.95,11.51603028]
[1732361557852,0.49789189,256.05,255.95,5.46903028]
[1732361558151,0.49789189,256.05,255.91,16.08083133]
[1732361558951,0.49789189,256.05,255.92,23.882]
[1732361559255,0.49789189,256.05,256.04,20.0]
[1732361559753,0.49789189,256.05,256.03,312.0]
[1732361559754,0.49789189,256.05,255.92,20.0]
[1732361560446,0.49789189,256.05,255.92,23.882]
[1732361560760,0.49789189,256.05,255.92,20.0]
[1732361562137,0.49789189,256.05,255.92,20.58582242]
[1732361562456,0.49789189,256.05,255.93,3.882]
[1732361562757,0.49789189,256.05,256.04,332.0]
[1732361563744,0.49789189,256.05,255.92,20.0]
[1732361564045,0.49789189,256.05,255.94,20.0]
[1732361564346,0.49789189,256.04,255.98,20.0]
[1732361564548,0.49789189,256.07,256.0,20.0]
[1732361565256,0.49789189,256.04,256.0,20.0]
[1732361565778,0.49789189,256.07,256.02,20.0]
[1732361566137,0.49789189,256.03,255.92,20.58579698]
[1732361566555,0.49789189,256.05,255.92,20.58579698]
[1732361566850,0.49789189,256.05,256.04,332.0]
[1732361573744,0.49789189,256.01,255.91,15.495]
[1732361574549,0.49789189,256.01,255.91,20.93278149]
[1732361574858,0.49789189,256.01,255.92,43.776884]
[1732361575669,0.49789189,255.99,255.92,43.776884]
[1732361576658,0.49789189,256.01,255.98,332.0]
[1732361576848,0.49789189,255.99,255.98,332.0]
[1732361577042,0.49789189,256.01,255.98,332.0]
[1732361577238,0.49789189,256.01,255.99,20.0]
[1732361577660,0.49789189,256.01,255.93,20.0]
[1732361578046,0.49789189,255.99,255.93,20.0]
[1732361579261,0.49789189,256.01,255.93,20.0]
[1732361579555,0.49789189,255.99,255.93,20.0]
[1732361580140,0.49789189,255.99,255.98,332.0]
[1732361581870,0.49789189,256.01,255.99,20.0]
[1732361582569,0.49789189,256.01,255.93,20.0]
[1732361583063,0.49789189,255.99,255.93,20.0]
[1732361583240,0.49789189,255.96,255.93,20.0]
[1732361583565,0.49789189,255.96,255.92,20.0]
[1732361584969,0.49789189,255.96,255.95,312.0]
[1732361585168,0.49789189,255.96,255.95,332.0]
[1732361587962,16.10639189,255.96,255.86,23.776884]
[1732361588304,0.49789189,255.94,255.82,3.882]
[1732361588443,0.49789189,255.9,255.83,23.776884]
[1732361588644,0.49789189,255.9,255.78,0.58609043]
[1732361588877,0.49789189,255.88,255.78,0.58609043]
[1732361589253,0.49789189,255.88,255.78,4.46809043]
[1732361589455,0.49789189,255.88,255.78,9.24763317]
[1732361589661,0.49789189,255.88,255.78,3.882]
[1732361590652,0.49789189,255.84,255.77,21.76987428]
[1732361591073,0.49789189,255.84,255.83,312.0]
[1732361592458,0.49789189,255.84,255.71,20.0659]
[1732361592678,0.49789189,255.79,255.71,20.0659]
[1732361592975,0.49789189,255.81,255.71,20.0659]
[1732361593158,0.49789189,255.79,255.71,21.58860341]
[1732361593755,0.49789189,255.81,255.71,21.58860341]
[1732361594070,0.49789189,255.81,255.72,20.0]
[1732361594275,0.49789189,255.83,255.72,20.0]
[1732361594473,0.49789189,255.83,255.73,0.58629928]
[1732361594668,0.49789189,255.85,255.73,0.58629928]
[1732361594855,0.49789189,255.82,255.73,23.776884]
[1732361595058,0.49789189,255.82,255.74,20.0]
[1732361595377,0.49789189,255.82,255.81,312.0]
[1732361595560,0.49789189,255.82,255.81,332.0]
[1732361595763,0.49789189,255.84,255.82,20.0]
[1732361598554,0.49789189,255.84,255.74,20.0]
[1732361598755,0.49789189,255.82,255.74,20.0]
[1732361599565,0.49789189,255.82,255.76,20.0]
[1732361601460,0.49789189,255.82,255.81,332.0]
[1732361604977,0.49789189,255.84,255.82,20.0]
[1732361605282,0.49789189,255.86,255.82,20.0]
[1732361605468,0.49789189,255.85,255.76,20.0]
[1732361605801,0.49789189,255.88,255.76,20.0]
[1732361606085,0.49789189,255.85,255.76,20.0]
[1732361606473,0.49789189,255.87,255.76,20.0]
[1732361606984,0.49789189,255.89,255.78,20.0]
[1732361607186,0.49789189,255.89,255.79,0.58612605]
[1732361607375,0.49789189,255.89,255.78,20.0]
[1732361608191,0.49789189,255.89,255.88,332.0]
[1732361608785,0.49789189,255.91,255.89,20.0]
[1732361609291,0.49789189,255.89,255.78,20.0]
[1732361612277,0.49789189,255.85,255.78,20.0]
[1732361612479,0.49789189,255.85,255.77,20.0]
[1732361613189,0.49789189,255.83,255.77,20.0]
[1732361613690,0.49789189,255.83,255.79,20.0]
[1732361614098,0.49789189,255.86,255.79,20.0]
[1732361614266,0.49789189,255.83,255.79,20.0]
[1732361614690,0.49789189,255.83,255.77,20.0]
[1732361614865,0.49789189,255.83,255.72,20.58629387]
[1732361615072,0.49789189,255.83,255.74,20.0]
[1732361615266,0.49789189,255.86,255.82,312.0]
[1732361615478,0.49789189,255.84,255.83,20.0]
[1732361615687,0.49789189,255.86,255.83,20.0]
[1732361616082,0.49789189,255.86,255.74,20.5862635]
[1732361618695,0.49789189,255.84,255.74,20.5862635]
[1732361618994,0.49789189,255.86,255.74,20.5862635]
[1732361619170,0.49789189,255.84,255.74,20.5862635]
[1732361619582,0.49789189,255.86,255.74,20.5862635]
[1732361621086,0.49789189,255.88,255.74,20.5862635]
[1732361621285,0.49789189,255.9,255.74,30.08837161]
[1732361621493,0.49789189,255.87,255.74,30.08837161]
[1732361621685,0.49789189,255.88,255.86,312.0]
[1732361621990,0.49789189,255.88,255.87,20.0]
[1732361622295,16.3021,255.93,255.87,20.0]
[1732361622296,0.49789189,255.9,255.87,20.0]
[1732361622503,0.49789189,255.9,255.77,20.58611821]
[1732361623687,0.49789189,255.92,255.77,30.58611821]
[1732361623897,0.49789189,255.92,255.79,36.2372]
[1732361624193,0.49789189,255.92,255.8,0.58604235]
[1732361624593,0.2123367,255.96,255.8,23.776884]
[1732361624594,0.49789189,255.89,255.8,23.776884]
[1732361624769,0.49789189,255.89,255.81,20.0]
[1732361625182,0.49789189,255.89,255.88,332.0]
[1732361626994,0.49789189,255.91,255.88,332.0]
[1732361627292,0.49789189,255.91,255.8,23.776884]
[1732361627293,0.49789189,255.93,255.89,20.0]
[1732361627679,0.49789189,255.93,255.81,20.58604159]
[1732361628377,6.5767,255.97,255.81,20.58604159]
[1732361628378,0.49789189,255.95,255.81,20.58604159]
[1732361628579,0.49789189,255.95,255.83,20.0]
[1732361628874,0.49789189,255.95,255.86,23.776884]
[1732361629077,0.49789189,255.97,255.87,20.0]
[1732361629777,0.49789189,255.95,255.87,20.0]
[1732361629994,0.49789189,255.98,255.87,20.0]
[1732361630298,0.49789189,255.98,255.97,332.0]
[1732361635792,0.49789189,256.0,255.97,332.0]
[1732361636097,0.49789189,256.0,255.89,20.0]
[1732361637181,0.49789189,255.98,255.89,20.0]
[1732361637792,0.49789189,256.0,255.89,20.0]
[1732361637986,0.2123367,256.04,255.89,20.0]
[1732361637987,0.49789189,255.98,255.89,20.0]
[1732361638193,0.49789189,255.98,255.9,3.882]
[1732361639097,0.49789189,255.98,255.97,335.882]
[1732361639303,0.49789189,256.0,255.98,20.0]
[1732361639897,0.49789189,256.0,255.97,3.882]
[1732361640087,0.49789189,256.0,255.9,3.882]
[1732361640607,0.49789189,256.0,255.92,23.882]
[1732361641186,0.49789189,256.0,255.92,3.882]
[1732361641696,0.49789189,256.0,255.93,3.882]
[1732361642002,6.6155,256.09,255.96,23.776884]
[1732361642187,6.6155,256.09,255.97,23.882]
[1732361642383,6.6155,256.09,256.07,20.0]
[1732361643101,6.6155,256.09,255.95,23.882]
[1732361643590,6.6155,256.09,255.97,20.0]
[1732361643789,6.6155,256.09,255.99,20.0]
[1732361644000,6.6155,256.09,255.97,23.882]
[1732361644508,6.6155,256.09,255.97,3.882]
[1732361644901,6.6155,256.09,255.95,20.0]
[1732361645086,6.6155,256.09,255.97,4.64361319]
[1732361646105,6.6155,256.09,256.05,20.0]
[1732361646496,6.6155,256.09,256.0,20.0]
[1732361647199,6.6155,256.09,255.97,8.52561319]
[1732361647200,6.6155,256.09,255.98,20.0]
[1732361647406,6.6155,256.09,255.99,23.776884]
[1732361647607,6.6155,256.09,256.0,20.0]
[1732361649486,6.6155,256.09,256.02,20.0]
[1732361650113,6.6155,256.09,256.0,20.0]
[1732361650302,6.6155,256.09,255.98,23.882]
[1732361651802,6.6155,256.09,255.99,20.0]
[1732361652010,6.6155,256.09,255.98,4.64361319]
[1732361653013,6.6155,256.09,256.01,20.0]
[1732361653593,6.6155,256.09,256.0,20.0]
[1732361656391,11.91026358,256.09,256.01,20.0]
[1732361656713,11.91026358,256.09,255.98,4.64361319]
[1732361656900,6.6155,256.09,255.98,4.64361319]
[1732361657410,16.1419,256.07,255.98,4.64361319]
[1732361657811,16.1419,256.07,255.95,20.0]
[1732361658500,21.43666358,256.07,255.95,20.0]
[1732361658808,6.3815,256.06,255.95,20.0]
[1732361660400,6.3815,256.06,255.96,4.64361319]
[1732361661215,6.3815,256.06,255.98,23.776884]
[1732361661518,6.3815,256.06,255.99,20.0]
[1732361661716,6.3815,256.06,256.0,23.776884]
[1732361661917,6.3815,256.06,256.01,20.0]
[1732361663225,6.3815,256.06,255.98,4.64361319]
[1732361663419,6.3815,256.06,255.99,23.776884]
[1732361663600,6.3815,256.06,256.0,20.0]
[1732361664597,6.3815,256.06,255.98,4.64361319]
[1732361665498,6.3815,256.06,256.0,20.0]
[1732361666997,6.3815,256.06,256.0,332.0]
[1732361670508,6.3815,256.06,255.98,4.64361319]
[1732361672008,15.561283,256.05,255.98,4.64361319]
[1732361673223,15.561283,256.05,255.99,23.882]
[1732361674126,15.561283,256.05,255.98,4.64361319]